Cogmind - Beta 13 @@@ ROGUE MODE // 2024.08.02 @ 01:51:36 Player: CatgirlLyra Result: Destroyed by D-53 Grenadier with Mini Grenade Launcher Performance ------------- Evolutions (0) 0 Regions Visited (2) 400 Robots Destroyed (26) 130 Value Destroyed (624) 624 Prototype IDs (0) 0 Alien Tech Used (0) 0 Bonus (16) 16 TOTAL SCORE: 1170 Bonus ------- High Alert Combat Kills 16 Cogmind --------- Core Integrity 0/250 Matter 300/300 Energy 100/100 System Corruption 0% Temperature Cool (0) Movement Core (50) Location -10/Mines Parts ------- > --- POWER (1) -------- (None) > --- PROPULSION (2) --- (None) > --- UTILITY (2) ------ (None) > --- WEAPON (2) ------- (None) > --- INVENTORY (5) ---- Huge Storage Unit Medium Laser Grenade Launcher Proton Bomb Trap Proton Bomb Trap Peak State ------------ > --- POWER ------------ Ion Engine > --- PROPULSION ------- Light Treads Light Treads > --- UTILITY ---------- Improved Heat Sink Small Storage Unit > --- WEAPON ----------- Small Laser Assault Rifle > --- INVENTORY -------- Light Treads Compact Wheel Compact Wheel Improved Terrain Scanner Light Armor Plating Light Armor Plating Light Assault Rifle Grenade Launcher [Rating: 10] Favorites ----------- Power Ion Engine Engine Ion Engine Propulsion Light Treads Treads Light Treads Utility Improved Heat Sink Device Improved Heat Sink Storage Huge Storage Unit Protection Light Armor Plating Weapon Medium Laser Energy Gun Medium Laser Ballistic Gun Assault Rifle Build | -11 -10 -10 ------- Run | Yrd Mat Min Slots Evolved . | . . . Power . | . . . Propulsion . | . . . Utility . | . . . Weapon . | . . . Parts Attached 20 | 7 13 . Power 4 | 1 3 . Engine 4 | 1 3 . Core . | . . . Reactor . | . . . Propulsion 3 | 2 1 . Treads 3 | 2 1 . Leg . | . . . Wheel . | . . . Hover . | . . . Flight . | . . . Utility 7 | 2 5 . Device 2 | 1 1 . Storage 4 | 1 3 . Processor . | . . . Hackware . | . . . Protection 1 | . 1 . Artifact . | . . . Weapon 6 | 2 4 . Energy Gun 5 | 1 4 . Energy Cannon . | . . . Ballistic Gun 1 | 1 . . Ballistic Cannon . | . . . Launcher . | . . . Special Weapon . | . . . Impact Weapon . | . . . Slashing Weapon . | . . . Piercing Weapon . | . . . Special Melee Weapon . | . . . Unidentified Prototypes . | . . . Parts Lost 2 | . 1 1 Power 1 | . 1 . Propulsion . | . . . Utility . | . . . Weapon 1 | . . 1 Highest Loss Streak 1 | . 1 1 To Critical Strikes . | . . . Average Slot Usage (%) 99 | . 99 98 Engine 13 | . 14 13 Treads 27 | . 28 27 Device 12 | . 11 13 Storage 13 | . 13 13 Protection 1 | . 2 . Energy Gun 23 | . 21 27 Ballistic Gun 4 | . 6 . Naked Turns 2 | . . 2 Heaviest Build 90 | 12 90 90 Greatest Support 40 | 40 40 40 Greatest Overweight (x) 2 | . 2 2 Average Overweight (x) . | . . 1 Largest Inventory Capacity 25 | 8 25 25 Average Capacity 16 | 6 13 24 Most Carried 13 | 5 10 13 Average Carried 9 | 4 8 12 Final Capacity 25 | 8 25 5 Final Carried 9 | 5 9 5 Class Distribution -------------------- 100% | Mutant Dominant Class ---------------- Mutant | -10/Materials Mutant | -10/Mines Resources | -11 -10 -10 ----------- Run | Yrd Mat Min Matter Collected 649 | 266 383 . Remotely . | . . . Salvage Created 975 | 126 849 . Parts 47 | 5 42 . Haulers Intercepted 2 | . 2 . Recyclers Shooed 2 | 1 1 . Parts Field Recycled . | . . . Retrieved Matter . | . . . Parts Self-Destructed . | . . . Prevented . | . . . Kills | -11 -10 -10 ------- Run | Yrd Mat Min Combat Hostiles Destroyed 18 | . 18 . Guns 15 | . 15 . Classes Destroyed 7 | 2 5 . Worker 1 | . 1 . Tunneler 3 | 3 . . Hauler 2 | . 2 . Recycler 1 | 1 . . Operator 1 | . 1 . Swarmer 3 | . 3 . Grunt 15 | . 15 . Best Kill Streak 4 | 3 4 . Combat Bots Only 4 | . 4 . Max Kills in Single Turn 2 | 1 2 . Gunslinging 1 | . 1 . Exploded . | . . . Melee . | . . . Uniques/NPCs Destroyed . | . . . Combat | -11 -10 -10 -------- Run | Yrd Mat Min Hostile Shots Fired 75 | . 66 9 Missed 20 | . 20 . Damage Taken 937 | . 545 392 Core 258 | . 83 175 Absorbed by Shields . | . . . Regen/Repaired (Parts) 264 | . 264 . Core Remaining (%) 100 | 100 . . Volleys Fired 89 | 12 76 1 Largest 2 | 2 2 2 Hottest 100 | 60 100 100 Shots Fired 172 | 24 146 2 Gun 172 | 24 146 2 Cannon . | . . . Launcher . | . . . Special . | . . . Kinetic 66 | 12 54 . Thermal 106 | 12 92 2 Explosive . | . . . Electromagnetic . | . . . Robot Hit Streak 15 | 9 15 . Robot Miss Streak 7 | 2 7 3 Penetration Max . | . . . Secondary Targets 2 | . 2 . Max Gunslinging Chain 1 | . 1 . Shots Hit Robots 111 | 16 95 . Core Hits 46 | 5 40 1 Critical Kills . | . . . Critical Parts Destroyed . | . . . Critical Strikes 6 | . 6 . Burn 6 | . 6 . Melee Attacks . | . . . Impact . | . . . Slashing . | . . . Piercing . | . . . Sneak Attacks . | . . . Combat Hostiles . | . . . Follow-up Attacks . | . . . Damage Inflicted 1389 | 185 1193 11 Guns 1372 | 185 1187 . Cannons . | . . . Explosions . | . . . Melee . | . . . Ramming 17 | . 6 11 Kinetic 495 | 76 419 . Thermal 877 | 109 768 . Explosive . | . . . Electromagnetic . | . . . Impact . | . . . Slashing . | . . . Piercing . | . . . Highest Corruption . | . . . Average Corruption . | . . . Corruption Purged . | . . . Corruption Blocked . | . . . Overload Shots . | . . . Overflow Damage . | . . . Projectiles . | . . . Explosions . | . . . Melee . | . . . Knockbacks . | . . . Impact . | . . . Kinetic . | . . . Secondary . | . . . Self-Inflicted Damage . | . . . Shots . | . . . Rammed 7 | . 4 3 Targets Rammed 7 | . 4 3 Kicked . | . . . Crushed . | . . . Highest Temperature 147 | . 147 . Average Temperature 39 | . 39 . Received Heat Transfer 273 | . 273 . Siege Activations . | . . . Robots Corrupted . | . . . Combat Hostiles . | . . . Parts Fried . | . . . Impact Corruptions . | . . . Robots Melted 3 | . 3 . Combat Hostiles 3 | . 3 . Parts Melted 2 | . 2 . Heat Transferred 2678 | 250 2428 . Parts Sabotaged . | . . . Parts Stolen . | . . . Parts Stripped . | . . . Power Chain Reactions . | . . . Alert | -11 -10 -10 ------- Run | Yrd Mat Min Peak Influence 402 | 20 402 48 Initial 48 | . 13 48 Average 162 | 8 227 35 Maximum Alert Level 2 | . 2 . Low Security (%) 58 | 100 38 100 Level 1 39 | . 59 . Level 2 1 | . 2 . Level 3 . | . . . Level 4 . | . . . Level 5 . | . . . High Security . | . . . Max Security . | . . . Squads Dispatched 4 | . 4 . Investigation 1 | . 1 . Extermination . | . . . Reinforcement 3 | . 3 . Assault . | . . . Garrison . | . . . Intercept . | . . . Searches Triggered . | . . . Construction Impeded . | . . . Haulers Reinforced . | . . . Active Scanning Responses . | . . . Cargo Convoy Interrupts . | . . . Stealth | -11 -10 -10 --------- Run | Yrd Mat Min Distress Signals 2 | . 2 . Communications Jammed . | . . . Distress Signals . | . . . Times Spotted 38 | . 36 2 Peak Tracking Total 6 | . 6 2 Tactical Retreats 3 | . 3 . Traps | -11 -10 -10 ------- Run | Yrd Mat Min Traps Triggered 2 | . 2 . Indirectly . | . . . Trap Hack Attempts . | . . . Triggered . | . . . Disarmed . | . . . Reprogrammed . | . . . Reused . | . . . Traps Extracted . | . . . Installed . | . . . Triggered . | . . . Most Traps Carried 4 | . . 4 Machines | -11 -10 -10 ---------- Run | Yrd Mat Min Machines Disabled 2 | . 2 . Max in Single Turn 1 | . 1 . Machines Repaired . | . . . Machines Dismantled . | . . . Machines Sabotaged . | . . . Overloaded Fab Kills . | . . . Hacking | -11 -10 -10 --------- Run | Yrd Mat Min Machines Accessed 7 | . 6 1 Terminals 6 | . 5 1 Fabricators . | . . . Repair Stations 1 | . 1 . Recycling Units . | . . . Scanalyzers . | . . . Garrison Access . | . . . Total Hacks 21 | . 20 1 Successful 13 | . 13 . Failed 7 | . 6 1 Catastrophic . | . . . Database Lockouts 1 | . 1 . Manual 16 | . 15 1 Terminals 19 | . 18 1 Fabricators . | . . . Repair Stations 2 | . 2 . Recycling Units . | . . . Scanalyzers . | . . . Garrison Access . | . . . Terminal Hacks 8 | . 8 . Part Schematic 1 | . 1 . Robot Analysis 2 | . 2 . Terminal Index 1 | . 1 . Alert Level 1 | . 1 . Unreport Threat 1 | . 1 . Locate Traps 1 | . 1 . Hauler Manifests 1 | . 1 . Fabricator Hacks . | . . . Repair Station Hacks 2 | . 2 . Scan Component 1 | . 1 . Repair 1 | . 1 . Recycling Unit Hacks . | . . . Scanalyzer . | . . . Garrison Access Hacks . | . . . Unauthorized Hacks 3 | . 3 . Terminals 3 | . 3 . Botnet 3 | . 3 . Fabricators . | . . . Repair Stations . | . . . Recycling Units . | . . . Scanalyzers . | . . . Garrison Access . | . . . Data Cores Recovered . | . . . Used . | . . . Hacking Detections 7 | . 6 1 Full Trace Events . | . . . Feedback Events . | . . . Feedback Blocked . | . . . Robot Schematics Acquired . | . . . Robots Built . | . . . Authchips . | . . . Time . | . . . Total Robot Build Rating . | . . . Part Schematics Acquired 1 | . 1 . Parts Built . | . . . Authchips . | . . . Time . | . . . Total Part Build Rating . | . . . Parts Repaired 1 | . 1 . Time 26 | . 26 . Parts Recycled . | . . . Recycled Matter . | . . . Retrieved Matter . | . . . Retrieved Components . | . . . Parts Scanalyzed . | . . . Part Schematics Acquired . | . . . Parts Damaged . | . . . Bothacking | -11 -10 -10 ------------ Run | Yrd Mat Min Used RIF Installer . | . . . Robots Hacked . | . . . Non-combat . | . . . Combat . | . . . Robot Hacks Applied . | . . . Relay Couplers Released . | . . . Fabnet Peak Effective % . | . . . Robots Rewired . | . . . Allies Hacked . | . . . Hacks Repelled . | . . . Allies | -11 -10 -10 -------- Run | Yrd Mat Min Total Allies 1 | . . 1 Largest Group 1 | . . 1 Highest-Rated Group 31 | . . 31 Highest-Rated Ally 31 | . . 31 Total Orders . | . . . Ally Attacks . | . . . Total Damage . | . . . Kills . | . . . Allies Corrupted . | . . . Allies Melted . | . . . Intel | -11 -10 -10 ------- Run | Yrd Mat Min Robot Analysis Total 2 | . 2 . Derelict Logs Recovered . | . . . Drone Launches . | . . . Drone Recoveries . | . . . Exploration | -11 -10 -10 ------------- Run | Yrd Mat Min Turns Passed 2000 | 127 1339 534 Spaces Moved 746 | 50 534 162 Core 4 | 3 . 1 Treads 742 | 47 534 161 Legs . | . . . Wheels . | . . . Hover . | . . . Flight . | . . . Fastest Speed 50 | 50 160 50 Average Speed 215 | 153 190 318 Slowest Speed 320 | 160 320 320 Overloaded Moves . | . . . Propulsion Burnouts . | . . . Robots Hopped . | . . . Cave-ins Triggered . | . . . Exploration Rate (%) 40 | 4 77 40 Regions Visited 2 Branch Regions 1 Pre-discovered Areas . | . . . Known Exits Taken . | . . . Unknown Exits Taken 2 | 1 1 . Scrap Searched . | . . . Spaces Dug . | . . . Terrain Destroyed . | . . . Melee . | . . . Projectile . | . . . AOE . | . . . Terrain Rammed . | . . . Walls Destroyed . | . . . Machines Disabled . | . . . Actions | -11 -10 -10 --------- Run | Yrd Mat Min Total 955 | 73 710 172 Wait 60 | . 60 . Move 744 | 49 533 162 Hop . | . . . Pick Up 21 | 5 11 5 Fast Attach 12 | 7 5 . Attach 1 | . 1 . Detach 1 | . 1 . Swap 7 | . 7 . Drop 13 | . 12 1 Fire 89 | 12 76 1 Melee . | . . . Ram . | . . . Kick . | . . . Crush 7 | . 4 3 Escape Stasis . | . . . Rewire . | . . . Trap . | . . . Miscellaneous . | . . . Route ------- -11/Scrapyard -10/Materials (discovered 2 exits: [*Mat] / *Min) -10/Mines (discovered 1 exit: [*Mat]) History --------- Turn | Location | Event 22 | -11/Scrapyard | Discovered new exit (range 16) 128 | -11/Scrapyard | Entered Materials 313 | -10/Materials | Discovered new exit (range 7) 314 | -10/Materials | Build established: Mutant 495 | -10/Materials | Discovered new exit (range 15) 961 | -10/Materials | Central database locked down 1353 | -10/Materials | Repaired Huge Storage Unit 1467 | -10/Materials | Entered Mines 1499 | -10/Mines | Found a hidden stash of uninstalled traps 1670 | -10/Mines | Received a Mining Laser from a helpful Derelict 1900 | -10/Mines | Discovered new exit (range 5) 1978 | -10/Mines | Assembled infested the area 1983 | -10/Mines | Assisted by a Guerilla fighting off Assembled 1997 | -10/Mines | Core integrity fell below 50% 1999 | -10/Mines | Released all parts (6) 2000 | -10/Mines | Core integrity fell below 20% 2001 | -10/Mines | Destroyed by D-53 Grenadier with Mini Grenade Launcher Last Messages --------------- 01978_ ALERT: Infestation in the mines, dispatching Demolisher response squad. 01983_ A derelict emerges from the shadows: "You need to get out of here! I've been tracking a group of Assembled to figure out where they're coming from, and they're closing on this area, come on!" 01987_ C-30 ARC bursts open, deploying its payload. 01987_ D-53 Grenadier unfolds itself. 01990_ K-01 Serf destroyed. 01999_ Med. Laser destroyed. 01999_ Released Lgt. Treads. 01999_ Released Med. Laser. 01999_ Released Imp. Heat Sink. 01999_ Released Lgt. Treads. 01999_ Released Ion Engine. 01999_ Released Huge Storage Unit. 02000_ Dropped Lgt. Treads. 02000_ Acquired Huge Storage Unit. Map ----- +----------------------------------------------------+ | #####????????????##? #??????????????????????????? | | # ##??????????? # ??????????????????????????? | | ##?????????? #??????????????????????????? | | | #?# ?????? #??????????????????????????? | | #?# ?????? #??????????????????????????? | | ## #?# ????? ##?????????????????????????? | | ##?###### ?????? ##????????????????????????? | | ??????## ????? #????????????????????????? | | ??????# ?????# #????????????????????????? | | ??????# #???## #????????????????????????? | | ???????# #### " #????????????????????????? | | ????????# "%" #????????????????????????? | | ??????????# ##???????????????????????? | | ?????????????# #???????????????????????? | | ??????????????# #???????????????????????? | | ####??????????# ### d ##???????????????????????? | | ##?????????# #?## ##????????????????????????? | | #?????????# #??# ####??????????????????????? | | #?????????# #?##d # #??????????????????????? | | #?????????# #?# ##?????????????????????? | | #??????####t ### ##????????????????????? | | #???????# T# ##???????????????????? | | #????????# < # ! ##??????????????????? | | ##???????# # &!] #??????????????????? | | ######??# # ![==& #??????????????????? | | #### ## **@= #??????????????????? | | """ ## [* #??????????????????? | | """ # ######### #??????????????????? | | """ ## #???????#### #??????????????????? | | ### #??????????# #?????????????????? | | ## #?# #??????????# #?????????????????? | | #### #?# #??????????## ##?????????????????? | | ??## ##?# #???????????## #??????????????????? | | ?## ##?# #????????????# #??????????????????? | | ?# #?# #????????????? ##??????????????????? | | ?# #?? ?????????????? ##???????????????????? | | ?## ##? ?????????????? ##????????????????????? | | ?## ###?????????????? #?????????????????????? | | ?# ##????????????? #?????????????????????? | | ?## #????????????? ??????????????????????? | | ??### ##?????????????h#??????????????????????? | | ????## ##??????????????????????????????????????? | | ?????#####???????????????????????????????????????? | | ?????????????????????????????????????????????????? | | ?????????????????????????????????????????????????? | | ?????????????????????????????????????????????????? | | ?????????????????????????????????????????????????? | | ?????????????????????????????????????????????????? | | ?????????????????????????????????????????????????? | | ?????????????????????????????????????????????????? | +----------------------------------------------------+ Best States ------------- Heat Dissipation 39 Energy Generation 10 Energy Capacity 250 Matter Stores 300 Matter Capacity 300 Sight Range 16 Terrain Scan Range 16 Terrain Scan Density 10 Armor Coverage 150 Evasion (%) 50 Recoil Reduction 2 Item Schematics ----------------- Huge Storage Unit | -10/Materials | Hacked Robot Schematics ------------------ None Fabricated ------------ Nothing Alien Tech Used ----------------- None Achievements -------------- None Challenges ------------ None Game ------ Seed EncryptedSchematicScrap Manual? 0 Play Time 00:14:37 Cumulative 57.2 hours Start 2024.08.02 @ 01:36:10 End 2024.08.02 @ 01:51:36 Sessions 1 Manual Loads 0 Difficulty Rogue Special Mode None Game No. 28 Rogue 28 Adventurer 0 Explorer 0 Win Type - Total 3 Types 1/0/0/2/0/0/0/0/0 Lore% 49 Gallery% 52 Achievement% 42 Wizard Run 0 Options --------- Layout 1 ASCII 0 Keyboard 0 Movement Numpad Keybinds 0 Fullscreen 1 Font 32/Tamsyn Map View 50x40 Zoom Use 0% Tactical HUD 1 Map Filters NONE Filters NONE Steam 1 RUN: 3a8e0f12-dac7-47a3-abf6-e133560b7343